fUSD/lending_fUSD_20240212
["ID","MTS","AMOUNT","RATE_DAILY","PERIOD"]
[313835207,1707748291679,-2525.28,0.00025858,2]
[313835208,1707748291688,-193.29048843,0.00025861,2]
[313835209,1707748291698,-500.0,0.00025861,2]
[313835210,1707748291707,-660.1,0.00025861,2]
[313835211,1707748291718,-676.33,0.00025861,2]
[313835212,1707748291728,-500.0,0.00025861,2]
[313835213,1707748291924,-500.0,0.00025861,2]
[313835214,1707748291935,-500.0,0.00025861,2]
[313835215,1707748291945,-500.0,0.00025861,7]
[313835216,1707748291954,-500.0,0.00025861,2]
[313835217,1707748291964,-500.0,0.00025861,2]
[313835218,1707748291973,-526.84,0.00025861,2]
[313835219,1707748291982,-500.0,0.00025861,2]
[313835220,1707748291991,-529.5,0.00025861,2]
[313835221,1707748292001,-500.0,0.00025861,2]
[313835222,1707748292010,-652.95,0.00025861,2]
[313835223,1707748292019,-651.67,0.00025861,2]
[313835224,1707748292029,-567.71,0.00025861,2]
[313835225,1707748292038,-500.0,0.00025861,2]
[313835226,1707748292047,-784.11,0.00025861,2]
[313835227,1707748292056,-524.91,0.00025861,2]
[313835228,1707748292065,-872.77,0.00025861,2]
[313835229,1707748292075,-639.25,0.00025861,2]
[313835230,1707748292084,-500.0,0.00025861,2]
[313835231,1707748292094,-500.0,0.00025861,2]
[313835232,1707748292103,-500.0,0.00025861,2]
[313835233,1707748292113,-1296.69,0.00025861,2]
[313835234,1707748292122,-500.0,0.00025861,2]
[313835235,1707748292132,-517.62,0.00025861,2]
[313835236,1707748292143,-4333.7,0.00025861,2]
[313835237,1707748292153,-1895.9,0.00025861,2]
[313835238,1707748292163,-923.15,0.00025861,2]
[313835239,1707748292172,-1121.1,0.00025861,2]
[313835240,1707748292182,-500.0,0.00025861,2]
[313835241,1707748292192,-500.0,0.00025861,2]
[313835242,1707748292201,-4100.88,0.00025861,2]
[313835243,1707748292210,-500.0,0.00025861,2]
[313835244,1707748292219,-791.85,0.00025861,2]
[313835245,1707748292228,-500.0,0.00025861,2]
[313835246,1707748292238,-1394.8,0.00025861,2]
[313835247,1707748292247,-575.24,0.00025861,2]
[313835248,1707748292256,-715.53,0.00025861,2]
[313835249,1707748292266,-637.77,0.00025861,2]
[313835250,1707748292275,-1763.67,0.00025861,2]
[313835251,1707748292284,-2032.84,0.00025861,2]
[313835252,1707748292294,-686.28,0.00025861,2]
[313835253,1707748292304,-689.11,0.00025861,2]
[313835254,1707748292317,-1500.18,0.00025861,2]
[313835255,1707748292327,-4391.98,0.00025861,2]
[313835256,1707748292337,-500.0,0.00025861,2]
[313835257,1707748292347,-637.5,0.00025861,2]
[313835258,1707748292357,-1040.77,0.00025861,2]
[313835259,1707748292367,-1065.07,0.00025861,2]
[313835260,1707748292377,-500.0,0.00025861,2]
[313835261,1707748292387,-596.16,0.00025861,2]
[313835262,1707748292397,-706.62,0.00025861,2]
[313835263,1707748292407,-500.0,0.00025861,2]
[313835264,1707748292417,-500.0,0.00025861,2]
[313835265,1707748292427,-4062.09,0.00025861,2]
[313835266,1707748292437,-1058.56,0.00025861,2]
[313835267,1707748292447,-721.91,0.00025861,2]
[313835268,1707748292458,-3863.5,0.00025861,2]
[313835269,1707748292467,-500.0,0.00025861,2]
[313835270,1707748292477,-559.05,0.00025861,2]
[313835271,1707748292487,-500.0,0.00025861,2]
[313835272,1707748292497,-500.0,0.00025861,2]
[313835273,1707748292506,-5323.17,0.00025861,2]
[313835274,1707748292516,-500.0,0.00025861,2]
[313835275,1707748292527,-1797.81,0.00025861,2]
[313835276,1707748292537,-500.0,0.00025861,2]
[313835277,1707748292548,-500.0,0.00025861,2]
[313835278,1707748292558,-1838.78,0.00025861,2]
[313835279,1707748292568,-683.21,0.00025861,2]
[313835280,1707748292577,-508.34,0.00025861,2]
[313835281,1707748292587,-945.99,0.00025861,2]
[313835282,1707748292597,-500.0,0.00025861,2]
[313835283,1707748292607,-874.97,0.00025861,2]
[313835284,1707748292617,-500.0,0.00025861,2]
[313835285,1707748292627,-2272.98,0.00025861,2]
[313835286,1707748292637,-1286.15,0.00025861,2]
[313835287,1707748292647,-500.0,0.00025861,2]
[313835288,1707748292658,-502.26,0.00025861,2]
[313835289,1707748292668,-639.88,0.00025862,2]
[313835290,1707748292679,-524.07,0.00025862,2]
[313835291,1707748292689,-500.0,0.00025862,2]
[313835292,1707748292699,-859.17,0.00025862,2]
[313835293,1707748292710,-8642.09,0.00025862,2]
[313835294,1707748292720,-500.0,0.00025862,2]
[313835295,1707748292730,-500.0,0.00025862,2]
[313835296,1707748292740,-907.74,0.00025862,2]
[313835297,1707748292750,-659.8,0.00025862,2]
[313835298,1707748292760,-6204.93,0.00025862,2]
[313835299,1707748292771,-500.0,0.00025862,2]
[313835300,1707748292783,-500.0,0.00025862,2]
[313835301,1707748292793,-500.0,0.00025862,2]
[313835302,1707748292804,-1134.83,0.00025862,2]
[313835303,1707748292814,-1147.71,0.00025862,2]
[313835304,1707748292824,-500.0,0.00025862,2]
[313835305,1707748292835,-500.0,0.00025862,2]
[313835306,1707748292845,-2142.38,0.00025862,2]
[313835307,1707748292855,-1578.9,0.00025862,2]
[313835308,1707748292866,-500.0,0.00025862,2]
[313835309,1707748292878,-1527.65,0.00025862,2]
[313835310,1707748292890,-628.61,0.00025862,2]
[313835311,1707748292902,-1715.49,0.00025862,2]
[313835312,1707748292912,-500.0,0.00025862,2]
[313835313,1707748292923,-1537.51,0.00025862,2]
[313835314,1707748292933,-500.0,0.00025862,2]
[313835315,1707748292944,-1757.6,0.00025862,2]
[313835316,1707748292954,-2089.11,0.00025862,2]
[313835317,1707748292964,-1017.68,0.00025862,2]
[313835318,1707748292975,-1161.37,0.00025862,2]
[313835319,1707748292986,-590.03,0.00025862,2]
[313835320,1707748292996,-10286.15,0.00025862,2]
[313835321,1707748293006,-1897.21,0.00025862,2]
[313835322,1707748293016,-500.0,0.00025862,2]
[313835323,1707748293028,-935.54,0.00025862,2]
[313835324,1707748293038,-500.0,0.00025862,2]
[313835325,1707748293050,-7934.79,0.00025862,2]
[313835326,1707748293060,-500.0,0.00025862,2]
[313835327,1707748293070,-2190.55,0.00025862,2]
[313835328,1707748293080,-500.0,0.00025862,2]
[313835329,1707748293090,-1376.25,0.00025862,2]
[313835330,1707748293101,-6405.5,0.00025862,2]
[313835331,1707748293111,-500.0,0.00025862,2]
[313835332,1707748293121,-4161.56,0.00025862,2]
[313835333,1707748293131,-692.19,0.00025862,2]
[313835334,1707748293140,-562.21,0.00025862,2]
[313835335,1707748293150,-400.0,0.000259,9]
[313835336,1707748293161,-500.0,0.00025919,2]
[313835337,1707748293170,-1262.54,0.00025943,2]
[313835338,1707748293180,-1207.47,0.00025943,2]
[313835339,1707748293190,-500.0,0.00025943,2]
[313835340,1707748293200,-189.86326119,0.00025943,2]
[313835341,1707748293209,-581.28,0.00025943,2]
[313835342,1707748293219,-500.0,0.00025943,2]
[313835343,1707748293228,-500.0,0.00025943,2]
[313835344,1707748293238,-500.0,0.00025943,2]
[313835345,1707748293247,-500.0,0.00025943,2]
[313835346,1707748293257,-500.0,0.00025943,2]
[313835347,1707748293267,-500.0,0.00025943,2]
[313835348,1707748293279,-662.95,0.00025943,2]
[313835349,1707748293289,-500.0,0.00025943,2]
[313835350,1707748293299,-500.0,0.00025943,2]
[313835351,1707748293310,-500.0,0.00025943,2]
[313835352,1707748293322,-500.0,0.00025943,2]
[313835353,1707748293331,-500.0,0.00025943,2]
[313835354,1707748293340,-500.0,0.00025943,2]
[313835355,1707748293350,-785.31,0.00025943,2]
[313835356,1707748293360,-500.0,0.00025943,2]
[313835357,1707748293370,-500.0,0.00025943,2]
[313835358,1707748293380,-1057.6,0.00025943,2]
[313835359,1707748293390,-623.82,0.00025943,2]
[313835360,1707748293400,-500.0,0.00025943,2]
[313835361,1707748293410,-557.31159883,0.00025943,2]
[313835362,1707748293419,-681.61,0.00025943,2]
[313835363,1707748293429,-500.0,0.00025943,2]
[313835364,1707748293439,-1004.0,0.00025943,2]
[313835365,1707748293449,-500.0,0.00025943,2]
[313835366,1707748293459,-500.0,0.00025943,2]
[313835367,1707748293469,-500.0,0.00025949,2]
[313835368,1707748293479,-205.0,0.00025962,5]
[313835369,1707748293488,-200.0,0.00026,2]
[313835370,1707748293498,-500.0,0.00026034,2]
[313835371,1707748293508,-500.0,0.00026034,2]
[313835372,1707748293518,-1366.1,0.00026034,2]
[313835373,1707748293529,-500.0,0.00026034,2]
[313835374,1707748293539,-2110.37,0.0002605,2]
[313835375,1707748293549,-6142.49,0.0002605,2]
[313835376,1707748293560,-500.0,0.0002605,2]
[313835377,1707748293570,-676.37,0.0002605,2]
[313835378,1707748293580,-1791.31,0.0002605,2]
[313835379,1707748293590,-564.38,0.0002605,2]
[313835380,1707748293600,-2125.32,0.0002605,2]
[313835381,1707748293610,-500.0,0.0002605,2]
[313835382,1707748293620,-746.12,0.0002605,2]
[313835383,1707748293631,-6506.4,0.0002605,2]
[313835384,1707748293641,-746.22,0.0002605,2]
[313835385,1707748293651,-500.0,0.0002605,2]
[313835386,1707748293661,-500.0,0.0002605,2]
[313835387,1707748293672,-500.0,0.0002605,2]
[313835388,1707748293682,-1926.94,0.0002605,2]
[313835389,1707748293691,-500.0,0.0002605,2]
[313835390,1707748293701,-1829.63,0.0002605,2]
[313835391,1707748293710,-504.23,0.0002605,2]
[313835392,1707748293719,-2230.81,0.0002605,2]
[313835393,1707748293730,-500.0,0.0002605,2]
[313835394,1707748293739,-500.0,0.0002605,2]
[313835395,1707748293749,-5597.11,0.0002605,2]
[313835396,1707748293758,-2899.6,0.0002605,2]
[313835397,1707748293768,-500.0,0.0002605,2]
[313835398,1707748293779,-828.89,0.0002605,2]
[313835399,1707748293788,-500.0,0.00026101,2]
[313835400,1707748293798,-2611.65,0.00026132,2]
[313835401,1707748293807,-1871.51,0.00026132,2]
[313835402,1707748293817,-15228.44,0.00026132,2]
[313835403,1707748293827,-1123.04,0.00026132,2]
[313835404,1707748293836,-500.0,0.00026132,2]
[313835405,1707748293846,-669.38,0.00026132,2]
[313835406,1707748293856,-500.0,0.00026132,2]
[313835407,1707748293866,-7454.03,0.00026132,2]
[313835408,1707748293876,-656.99,0.00026132,2]
[313835409,1707748293886,-1132.61,0.00026132,2]
[313835410,1707748293897,-607.87,0.00026132,2]
[313835411,1707748293907,-2975.67,0.00026132,2]
[313835412,1707748293916,-1380.57,0.00026132,2]
[313835413,1707748293926,-1785.04,0.00026132,2]
[313835414,1707748293935,-500.0,0.00026132,2]
[313835415,1707748293946,-1602.71,0.00026132,2]
[313835416,1707748293955,-1140.13,0.00026132,2]
[313835417,1707748293965,-2106.31,0.00026132,2]
[313835418,1707748293975,-1276.82,0.00026132,2]
[313835419,1707748293985,-11488.97,0.00026132,2]
[313835420,1707748293995,-779.37,0.00026132,2]
[313835421,1707748294005,-522.1,0.00026132,2]
[313835422,1707748294016,-500.0,0.00026132,2]
[313835423,1707748294026,-862.25,0.00026132,2]
[313835424,1707748294036,-954.69,0.00026132,2]
[313835425,1707748294046,-4038.41,0.00026132,2]
[313835426,1707748294056,-2125.47,0.00026132,2]
[313835427,1707748294066,-3098.18,0.00026132,2]
[313835428,1707748294076,-4848.26,0.00026132,2]
[313835429,1707748294085,-1169.49,0.00026132,2]
[313835430,1707748294095,-2525.28,0.00026132,2]
[313835431,1707748294105,-500.0,0.00026135,2]
[313835432,1707748294115,-660.1,0.00026135,2]
[313835433,1707748294124,-676.33,0.00026135,2]
[313835434,1707748294134,-500.0,0.00026135,2]
[313835435,1707748294143,-500.0,0.00026135,2]
[313835436,1707748294153,-500.0,0.00026135,2]
[313835437,1707748294163,-500.0,0.00026135,2]
[313835438,1707748294173,-500.0,0.00026135,2]
[313835439,1707748294183,-526.84,0.00026135,2]
[313835440,1707748294192,-500.0,0.00026135,2]
[313835441,1707748294202,-529.5,0.00026135,2]
[313835442,1707748294212,-500.0,0.00026135,2]
[313835443,1707748294221,-652.95,0.00026135,2]
[313835444,1707748294231,-651.67,0.00026135,2]
[313835445,1707748294240,-567.71,0.00026135,2]
[313835446,1707748294250,-500.0,0.00026135,2]
[313835447,1707748294259,-784.11,0.00026135,2]
[313835448,1707748294269,-524.91,0.00026135,2]
[313835449,1707748294342,-872.77,0.00026135,2]
[313835450,1707748294353,-639.25,0.00026135,2]
[313835451,1707748294362,-500.0,0.00026135,2]
[313835452,1707748294372,-500.0,0.00026135,2]
[313835453,1707748294381,-500.0,0.00026135,2]
[313835454,1707748294391,-1296.69,0.00026135,2]
[313835455,1707748294401,-500.0,0.00026135,2]
[313835456,1707748294410,-517.62,0.00026135,2]
[313835457,1707748294419,-4333.7,0.00026135,2]
[313835458,1707748294428,-1895.9,0.00026135,2]
[313835459,1707748294439,-923.15,0.00026135,2]
[313835460,1707748294448,-1121.1,0.00026135,2]
[313835461,1707748294458,-500.0,0.00026135,2]
[313835462,1707748294468,-500.0,0.00026135,2]
[313835463,1707748294478,-4100.88,0.00026135,2]
[313835464,1707748294487,-500.0,0.00026135,2]
[313835465,1707748294497,-791.85,0.00026135,2]
[313835466,1707748294507,-500.0,0.00026135,2]
[313835467,1707748294516,-1394.8,0.00026135,2]
[313835468,1707748294526,-575.24,0.00026135,2]
[313835469,1707748294538,-715.53,0.00026135,2]
[313835470,1707748294551,-637.77,0.00026135,2]
[313835471,1707748294562,-1763.67,0.00026135,2]
[313835472,1707748294576,-2032.84,0.00026135,2]
[313835473,1707748294586,-686.28,0.00026135,2]
[313835474,1707748294596,-689.11,0.00026135,2]
[313835475,1707748294605,-1500.18,0.00026135,2]
[313835476,1707748294615,-4391.98,0.00026135,2]
[313835477,1707748294624,-500.0,0.00026135,2]
[313835478,1707748294634,-637.5,0.00026135,2]
[313835479,1707748294643,-1040.77,0.00026135,2]
[313835480,1707748294652,-1065.07,0.00026135,2]
[313835481,1707748294662,-500.0,0.00026135,2]
[313835482,1707748294671,-596.16,0.00026135,2]
[313835483,1707748294681,-706.62,0.00026135,2]
[313835484,1707748294691,-500.0,0.00026135,2]
[313835485,1707748294700,-500.0,0.00026135,2]
[313835486,1707748294710,-4062.09,0.00026135,2]
[313835487,1707748294720,-1058.56,0.00026135,2]
[313835488,1707748294729,-721.91,0.00026135,2]
[313835489,1707748294739,-3863.5,0.00026135,2]
[313835490,1707748294749,-500.0,0.00026135,2]
[313835491,1707748294758,-559.05,0.00026135,2]
[313835492,1707748294768,-506.04012278,0.00026135,2]
[313835493,1707748294778,-500.0,0.00026135,2]
[313835494,1707748294788,-5323.17,0.00026135,2]
[313835495,1707748294798,-500.0,0.00026135,2]
[313835496,1707748294807,-1797.81,0.00026135,2]
[313835497,1707748294816,-615.71817286,0.00026135,2]
[313835498,1707748294825,-500.0,0.00026135,2]
[313835499,1707748294835,-1838.78,0.00026135,2]
[313835500,1707748294845,-683.21,0.00026135,2]
[313835501,1707748294854,-508.34,0.00026135,2]
[313835502,1707748294863,-945.99,0.00026135,2]
[313835503,1707748294872,-874.97,0.00026135,2]
[313835504,1707748294881,-500.0,0.00026135,2]
[313835505,1707748294890,-2272.98,0.00026135,2]
[313835506,1707748294899,-1286.15,0.00026135,2]
[313835507,1707748294909,-500.0,0.00026135,2]
[313835508,1707748294919,-502.26,0.00026135,2]
[313835509,1707748294928,-639.88,0.00026136,2]
[313835510,1707748294937,-524.07,0.00026136,2]
[313835511,1707748294947,-500.0,0.00026136,2]
[313835512,1707748294956,-859.17,0.00026136,2]
[313835513,1707748294966,-8642.09,0.00026136,2]
[313835514,1707748294975,-500.0,0.00026136,2]
[313835515,1707748294984,-500.0,0.00026136,2]
[313835516,1707748294993,-907.74,0.00026136,2]
[313835517,1707748295003,-659.8,0.00026136,2]
[313835518,1707748295013,-6204.93,0.00026136,2]
[313835519,1707748295023,-500.0,0.00026136,2]
[313835520,1707748295035,-500.0,0.00026136,2]
[313835521,1707748295044,-500.0,0.00026136,2]
[313835522,1707748295054,-1134.83,0.00026136,2]
[313835523,1707748295064,-1147.71,0.00026136,2]
[313835524,1707748295075,-500.0,0.00026136,2]
[313835525,1707748295085,-500.0,0.00026136,2]
[313835526,1707748295095,-2142.38,0.00026136,2]
[313835527,1707748295105,-1578.9,0.00026136,2]
[313835528,1707748295116,-500.0,0.00026136,2]
[313835529,1707748295126,-628.61,0.00026136,2]
[313835530,1707748295137,-1527.65,0.00026136,2]
[313835531,1707748295147,-1715.49,0.00026136,2]
[313835532,1707748295157,-217.20511305,0.00026136,2]
[313835533,1707748295168,-1537.51,0.00026136,2]
[313835534,1707748295178,-500.0,0.00026136,2]
[313835535,1707748295188,-1757.6,0.00026136,2]
[313835536,1707748295198,-2089.11,0.00026136,2]
[313835537,1707748295208,-1017.68,0.00026136,2]
[313835538,1707748295218,-1161.37,0.00026136,2]
[313835539,1707748295228,-590.03,0.00026136,2]
[313835540,1707748295237,-10286.15,0.00026136,2]
[313835541,1707748295248,-1897.21,0.00026136,2]
[313835542,1707748295258,-452.76,0.00026136,2]
[313835543,1707748295267,-935.54,0.00026136,2]
[313835544,1707748295278,-500.0,0.00026136,2]
[313835545,1707748295288,-7934.79,0.00026136,2]
[313835546,1707748295298,-500.0,0.00026136,2]
[313835547,1707748295312,-2190.55,0.00026136,2]
[313835548,1707748295323,-500.0,0.00026136,2]
[313835549,1707748295332,-1376.25,0.00026136,2]
[313835550,1707748295342,-6405.5,0.00026136,2]
[313835551,1707748295352,-500.0,0.00026136,2]
[313835552,1707748295362,-4161.56,0.00026136,2]
[313835553,1707748295372,-692.19,0.00026136,2]
[313835554,1707748295381,-165.82,0.00026141,2]
[313835555,1707748295393,-5812.6876084,0.00026167,2]
[313835556,1707748295403,-1262.54,0.00026217,2]
[313835557,1707748295413,-1207.47,0.00026217,2]
[313835558,1707748295422,-500.0,0.00026217,2]
[313835559,1707748295432,-581.28,0.00026217,2]
[313835560,1707748295441,-500.0,0.00026217,2]
[313835561,1707748295451,-500.0,0.00026217,2]
[313835562,1707748295460,-500.0,0.00026217,2]
[313835563,1707748295470,-500.0,0.00026217,2]
[313835564,1707748295479,-500.0,0.00026217,2]
[313835565,1707748295488,-411.52911048,0.00026217,2]
[313835566,1707748295498,-662.95,0.00026217,2]
[313835567,1707748295507,-500.0,0.00026217,2]
[313835568,1707748295516,-500.0,0.00026217,2]
[313835569,1707748295526,-500.0,0.00026217,2]
[313835570,1707748295536,-500.0,0.00026217,2]
[313835571,1707748295545,-500.0,0.00026217,2]
[313835572,1707748295554,-500.0,0.00026217,2]
[313835573,1707748295564,-785.31,0.00026217,2]
[313835574,1707748295573,-500.0,0.00026217,2]
[313835575,1707748295583,-500.0,0.00026217,2]
[313835576,1707748295592,-1057.6,0.00026217,2]
[313835577,1707748295602,-623.82,0.00026217,2]
[313835578,1707748295611,-500.0,0.00026217,2]
[313835579,1707748295621,-681.61,0.00026217,2]
[313835580,1707748295630,-513.33,0.00026217,2]
[313835581,1707748295639,-1004.0,0.00026217,2]
[313835582,1707748295649,-500.0,0.00026217,2]
[313835583,1707748295659,-500.0,0.00026217,2]
[313835584,1707748295670,-42470.57985931,0.00026264,2]
[313835585,1707748295679,-500.0,0.00026284,2]
[313835586,1707748295689,-500.0,0.00026308,2]
[313835587,1707748295698,-500.0,0.00026308,2]
[313835588,1707748295708,-1366.1,0.00026308,2]
[313835589,1707748295718,-557.4038124,0.00026308,2]
[313835590,1707748295727,-2110.37,0.00026324,2]
[313835591,1707748295737,-6142.49,0.00026324,2]
[313835592,1707748295747,-500.0,0.00026324,2]
[313835593,1707748295757,-676.37,0.00026324,2]
[313835594,1707748295766,-1791.31,0.00026324,2]
[313835595,1707748295776,-564.38,0.00026324,2]
[313835596,1707748295787,-2125.32,0.00026324,2]
[313835597,1707748295796,-500.0,0.00026324,2]
[313835598,1707748295806,-746.12,0.00026324,2]
[313835599,1707748295815,-6506.4,0.00026324,2]
[313835600,1707748295825,-746.22,0.00026324,2]
[313835601,1707748295834,-500.0,0.00026324,2]
[313835602,1707748295843,-500.0,0.00026324,2]
[313835603,1707748295852,-500.0,0.00026324,2]
[313835604,1707748295861,-1926.94,0.00026324,2]
[313835605,1707748295870,-500.0,0.00026324,2]
[313835606,1707748295879,-1829.63,0.00026324,2]
[313835607,1707748295888,-504.23,0.00026324,2]
[313835608,1707748295898,-2230.81,0.00026324,2]
[313835609,1707748295907,-500.0,0.00026324,2]
[313835610,1707748295916,-500.0,0.00026324,2]
[313835611,1707748295925,-5597.11,0.00026324,2]
[313835612,1707748295934,-2899.6,0.00026324,2]
[313835613,1707748295944,-500.0,0.00026324,2]
[313835614,1707748295953,-828.89,0.00026324,2]
[313835615,1707748295962,-411.54,0.00026395,2]
[313835616,1707748295971,-418.37,0.00026395,2]
[313835617,1707748295981,-411.54,0.00026395,2]
[313835618,1707748295990,-834.49,0.00026395,2]
[313835619,1707748295999,-418.37,0.00026395,2]
[313835620,1707748296009,-411.54,0.00026395,2]
[313835621,1707748296018,-411.54,0.00026395,2]
[313835622,1707748296027,-411.54,0.00026395,2]
[313835623,1707748296037,-411.54,0.00026395,2]
[313835624,1707748296046,-411.54,0.00026395,2]
[313835625,1707748296055,-411.54,0.00026395,2]
[313835626,1707748296064,-411.54,0.00026395,2]
[313835627,1707748296074,-411.54,0.00026395,2]
[313835628,1707748296083,-411.54,0.00026395,2]
[313835629,1707748296092,-411.54,0.00026395,2]
[313835630,1707748296101,-411.54,0.00026395,2]
[313835631,1707748296111,-411.54,0.00026395,2]
[313835632,1707748296120,-411.54,0.00026395,2]
[313835633,1707748296129,-411.54,0.00026395,2]
[313835634,1707748296139,-411.54,0.00026395,2]
[313835635,1707748296149,-411.54,0.00026395,2]
[313835636,1707748296159,-711.53,0.00026395,2]
[313835637,1707748296168,-449.0,0.000264,14]
[313835638,1707748296177,-237.999523,0.000264,2]
[313835639,1707748296187,-1987.288625,0.000264,2]
[313835640,1707748296197,-2611.65,0.00026406,2]
[313835641,1707748296206,-1871.51,0.00026406,2]
[313835642,1707748296216,-15228.44,0.00026406,2]
[313835643,1707748296225,-1123.04,0.00026406,2]
[313835644,1707748296235,-500.0,0.00026406,2]
[313835645,1707748296244,-669.38,0.00026406,2]
[313835646,1707748296254,-500.0,0.00026406,2]
[313835647,1707748296264,-7454.03,0.00026406,2]
[313835648,1707748296273,-656.99,0.00026406,2]
[313835649,1707748296284,-1132.61,0.00026406,2]
[313835650,1707748296294,-607.87,0.00026406,2]
[313835651,1707748296303,-2975.67,0.00026406,2]
[313835652,1707748296315,-1380.57,0.00026406,2]
[313835653,1707748296325,-1785.04,0.00026406,2]
[313835654,1707748296334,-500.0,0.00026406,2]
[313835655,1707748296344,-1602.71,0.00026406,2]
[313835656,1707748296354,-1140.13,0.00026406,2]
[313835657,1707748296364,-2106.31,0.00026406,2]
[313835658,1707748296373,-1276.82,0.00026406,2]
[313835659,1707748296383,-11488.97,0.00026406,2]
[313835660,1707748296396,-779.37,0.00026406,2]
[313835661,1707748296407,-522.1,0.00026406,2]
[313835662,1707748296417,-500.0,0.00026406,2]
[313835663,1707748296427,-862.25,0.00026406,2]
[313835664,1707748296437,-954.69,0.00026406,2]
[313835665,1707748296447,-4038.41,0.00026406,2]
[313835666,1707748296457,-2125.47,0.00026406,2]
[313835667,1707748296467,-3098.18,0.00026406,2]
[313835668,1707748296477,-4848.26,0.00026406,2]
[313835669,1707748296488,-1169.49,0.00026406,2]
[313835670,1707748296498,-2525.28,0.00026406,2]
[313835671,1707748296508,-150.0,0.00026408,2]
[313835672,1707748296517,-500.0,0.00026409,2]
[313835673,1707748296527,-660.1,0.00026409,2]
[313835674,1707748296538,-676.33,0.00026409,2]
[313835675,1707748296548,-500.0,0.00026409,2]
[313835676,1707748296557,-500.0,0.00026409,2]
[313835677,1707748296567,-500.0,0.00026409,2]
[313835678,1707748296577,-500.0,0.00026409,2]
[313835679,1707748296587,-500.0,0.00026409,2]
[313835680,1707748296597,-526.84,0.00026409,2]
[313835681,1707748296607,-500.0,0.00026409,2]
[313835682,1707748296617,-529.5,0.00026409,2]
[313835683,1707748296627,-500.0,0.00026409,2]
[313835684,1707748296637,-652.95,0.00026409,2]
[313835685,1707748296648,-651.67,0.00026409,2]
[313835686,1707748296658,-567.71,0.00026409,2]
[313835687,1707748296668,-500.0,0.00026409,2]
[313835688,1707748296677,-784.11,0.00026409,2]
[313835689,1707748296687,-524.91,0.00026409,2]
[313835690,1707748296696,-872.77,0.00026409,2]
[313835691,1707748296706,-639.25,0.00026409,2]
[313835692,1707748296717,-500.0,0.00026409,2]
[313835693,1707748296727,-500.0,0.00026409,2]
[313835694,1707748296737,-498.50165276,0.00026409,2]
[313835695,1707748296746,-1296.69,0.00026409,2]
[313835696,1707748296756,-500.0,0.00026409,2]
[313835697,1707748296765,-517.62,0.00026409,2]
[313835698,1707748296775,-4333.7,0.00026409,2]
[313835699,1707748296784,-1895.9,0.00026409,2]
[313835700,1707748296795,-923.15,0.00026409,2]
[313835701,1707748296805,-1121.1,0.00026409,2]
[313835702,1707748296815,-500.0,0.00026409,2]
[313835703,1707748296825,-500.0,0.00026409,2]
[313835704,1707748296836,-4100.88,0.00026409,2]
[313835705,1707748296845,-500.0,0.00026409,2]
[313835706,1707748296855,-791.85,0.00026409,2]